[Event "2nd Namma Bengaluru Open-A 2025"]
[Site "Bengaluru"]
[Date "2025.04.17"]
[Round "9.8"]
[White "Goutham Krishna H"]
[Black "Hari Madhavan N B"]
[Result "0-1"]
[Annotator "RC"]
[ECO "A12"]
[WhiteElo "2449"]
[BlackElo "2393"]
[PlyCount "92"]
[EventDate "2025.04.10"]
[EventType "swiss"]
[EventCountry "IND"]
[SourceTitle "playchess.com"]
[Source "ChessBase"]
[SourceQuality "1"]
[TimeControl "5400+30"]

1. c4 {[%emt 0:00:05]} c6 {[%emt 0:08:43]} 2. Nf3 {[%emt 0:00:13]} d5 {[%emt 0:00:07]} 3. b3 {[%emt 0:00:10]} Bf5 {[%emt 0:00:39]} 4. Bb2 {[%emt 0:00:14]} e6 {[%emt 0:00:05]} 5. g3 {[%emt 0:00:04]} Nf6 {[%emt 0:00:05]} 6. Bg2 {[%emt 0:00:05]} Nbd7 {[%emt 0:00:05]} 7. O-O {[%emt 0:00:14]} h6 {[%emt 0:00:05]} 8. d3 {[%emt 0:00:23]} Be7 {[%emt 1:24:41]} 9. cxd5 {[%emt 0:00:43]} cxd5 {[%emt 0:00:00]} 10. Nc3 {[%emt 0:13:54]} O-O {[%emt 0:00:00]} 11. Re1 {[%emt 0:00:18]} Bh7 {[%emt 0:00:00]} 12. Rc1 {[%emt 0:08:50]} Rc8 {[%emt 0:00:00]} 13. h3 {[%emt 0:00:33]} a6 {[%emt 0:00:00]} 14. a3 {[%emt 0:09:20]} e5 {[%emt 0:00:00]} 15. e4 {[%emt 0:07:37]} d4 {[%emt 0:00:00]} 16. Nb1 {[%emt 0:00:48]} Qb6 {[%emt 0:00:00]} 17. Nbd2 {[%emt 0:01:00]} Qe6 {[%emt 0:00:00]} 18. Rb1 {[%emt 0:15:31]} Nc5 {[%emt 0:00:00]} 19. Nc4 {[%emt 0:02:44]} Nfd7 {[%emt 0:00:00]} 20. Bf1 {[%emt 0:05:07]} b5 {[%emt 0:00:00]} 21. Ncd2 {[%emt 0:00:24]} f5 {[%emt 0:00:00]} 22. b4 {[%emt 0:07:47]} fxe4 {[%emt 0:00:00]} 23. bxc5 {[%emt 0:11:17]} exf3 {[%emt 0:00:00]} 24. Bxd4 {[%emt 0:00:19]} Bxc5 {[%emt 0:00:00]} 25. Bxc5 {[%emt 0:00:14]} Nxc5 {[%emt 0:00:00]} 26. Re3 {[%emt 0:04:07]} Rcd8 {[%emt 0:00:00]} 27. Qc2 {[%emt 0:02:57]} Qd5 {[%emt 0:00:00]} 28. Ne4 {[%emt 0:00:48]} Ne6 {[%emt 0:00:00]} 29. Rbe1 {[%emt 0:00:23]} Nd4 {[%emt 0:00:00]} 30. Qb2 {[%emt 0:01:51]} Rc8 {[%emt 0:00:00]} 31. g4 {[%emt 0:02:02]} Rfe8 {[%emt 0:00:00]} 32. Ng3 {[%emt 0:01:16]} Qd6 {[%emt 0:00:00]} 33. Ne4 {[%emt 0:01:51]} Qb6 {[%emt 0:00:00]} 34. Rc1 {[%emt 0:01:31]} Bxe4 {[%emt 0:00:09]} 35. Rxc8 {[%emt 0:00:44]} Rxc8 {[%emt 0:00:06]} 36. Rxe4 {[%emt 0:00:27]} Qc5 {[%emt 0:01:54]} 37. Qa2+ {[%emt 0:00:26]} Kh8 {[%emt 0:01:21]} 38. Re1 {[%emt 0:01:52]} Qc3 {[%emt 0:02:09]} 39. Rb1 {[%emt 0:00:17]} Qc2 {[%emt 0:02:47]} 40. Rb2 {[%emt 0:00:23]} Qd1 {[%emt 0:00:15]} 41. Rb1 {[%emt 0:00:25]} Rc1 {[%emt 0:00:16]} 42. Rxc1 {[%emt 0:01:01]} Qxc1 {[%emt 0:00:07]} 43. Qd5 {[%emt 0:00:39]} Qe1 {[%emt 0:01:23]} 44. Qc5 {[%emt 0:00:32]} Kh7 {[%emt 0:00:24]} 45. g5 {[%emt 0:01:02]} hxg5 {[%emt 0:00:17]} 46. Qd5 {[%emt 0:00:30]} Ne2+ {[%emt 0:07:52]} 0-1

[Event "2nd Namma Bengaluru Open-A 2025"]
[Site "Bengaluru"]
[Date "2025.04.17"]
[Round "9.9"]
[White "Vaz, Ethan"]
[Black "Karthikeyan, P.."]
[Result "*"]
[Annotator "RC"]
[ECO "B15"]
[WhiteElo "2430"]
[BlackElo "2312"]
[PlyCount "34"]
[EventDate "2025.04.10"]
[EventType "swiss"]
[EventCountry "IND"]
[SourceTitle "playchess.com"]
[Source "ChessBase"]
[SourceQuality "1"]
[TimeControl "5400+30"]

1. e4 {[%emt 0:00:02]} c6 {[%emt 0:04:26]} 2. d4 {[%emt 0:00:15]} d5 {[%emt 0:00:43]} 3. Nc3 {[%emt 0:00:10]} dxe4 {[%emt 0:00:06]} 4. Nxe4 {[%emt 0:00:03]} Nf6 {[%emt 0:00:12]} 5. Nxf6+ {[%emt 0:00:10]} exf6 {[%emt 0:00:05]} 6. c3 {[%emt 0:00:03]} Bd6 {[%emt 0:00:20]} 7. Bd3 {[%emt 0:00:09]} O-O {[%emt 0:01:16]} 8. Qc2 {[%emt 0:00:03]} Re8+ {[%emt 0:02:18]} 9. Ne2 {[%emt 0:00:04]} h5 {[%emt 0:00:02]} 10. O-O {[%emt 0:00:08]} h4 {[%emt 0:00:55]} 11. Nf4 {[%emt 0:00:10]} Nd7 {[%emt 0:03:09]} 12. Qd1 {[%emt 0:00:10]} Nf8 {[%emt 0:04:56]} 13. Qh5 {[%emt 0:00:18]} Bd7 {[%emt 0:23:43]} 14. Bd2 {[%emt 0:27:05]} f5 {[%emt 0:08:56]} 15. Nh3 {[%emt 0:20:01]} g6 {[%emt 0:00:44]} 16. Qh6 {[%emt 0:10:42]} Nh7 {[%emt 0:01:27]} 17. Bc4 {[%emt 0:07:26]} Be6 {[%emt 0:45:42]} *

[Event "2nd Namma Bengaluru Open-A 2025"]
[Site "Bengaluru"]
[Date "2025.04.17"]
[Round "9.10"]
[White "Viani Antonio Dcunha"]
[Black "Mehar, Chinna Reddy C.H."]
[Result "0-1"]
[Annotator "RC"]
[ECO "C93"]
[WhiteElo "2378"]
[BlackElo "2418"]
[PlyCount "66"]
[EventDate "2025.04.10"]
[EventType "swiss"]
[EventCountry "IND"]
[SourceTitle "playchess.com"]
[Source "ChessBase"]
[SourceQuality "1"]
[TimeControl "5400+30"]

1. e4 {[%emt 0:00:12]} e5 {[%emt 0:00:38]} 2. Nf3 {[%emt 0:00:22]} Nc6 {[%emt 0:00:08]} 3. Bb5 {[%emt 0:01:12]} a6 {[%emt 0:00:10]} 4. Ba4 {[%emt 0:00:21]} Nf6 {[%emt 0:00:43]} 5. O-O {[%emt 0:00:16]} Be7 {[%emt 0:00:15]} 6. Re1 {[%emt 0:00:31]} b5 {[%emt 0:00:08]} 7. Bb3 {[%emt 0:00:05]} O-O {[%emt 0:00:19]} 8. c3 {[%emt 0:00:27]} d6 {[%emt 0:00:08]} 9. h3 {[%emt 0:02:04]} Bb7 {[%emt 0:00:32]} 10. d4 {[%emt 0:00:23]} Re8 {[%emt 0:00:43]} 11. Ng5 {[%emt 0:00:13]} Rf8 {[%emt 0:00:10]} 12. Nf3 {[%emt 0:00:07]} Re8 {[%emt 0:00:20]} 13. Nbd2 {[%emt 0:01:56]} Bf8 {[%emt 0:00:29]} 14. Bc2 {[%emt 0:02:04]} h6 {[%emt 0:01:40]} 15. d5 {[%emt 0:12:06]} Nb8 {[%emt 0:01:10]} 16. a4 {[%emt 0:03:31]} Nbd7 {[%emt 0:01:51]} 17. b4 {[%emt 0:05:51]} c6 {[%emt 0:04:53]} 18. c4 {[%emt 0:04:07]} Qc7 {[%emt 0:09:41]} 19. dxc6 {[%emt 0:05:22]} Bxc6 20. Ba3 {[%emt 0:10:48]} bxc4 {[%emt 0:17:54]} 21. Nxc4 {[%emt 0:03:58]} d5 {[%emt 0:04:11]} 22. exd5 {[%emt 0:09:07]} Nxd5 {[%emt 0:00:31]} 23. Na5 {[%emt 0:10:27]} Nxb4 {[%emt 0:04:17]} 24. Bxb4 {[%emt 0:02:43]} Bxf3 {[%emt 0:02:51]} 25. Qd2 {[%emt 0:13:57]} Bxb4 {[%emt 0:01:29]} 26. Qxb4 {[%emt 0:00:03]} Qxc2 {[%emt 0:00:18]} 27. gxf3 {[%emt 0:00:05]} Nf6 {[%emt 0:06:08]} 28. Rac1 {[%emt 0:00:10]} Qg6+ {[%emt 0:00:17]} 29. Kh2 {[%emt 0:01:06]} Qf5 {[%emt 0:01:01]} 30. Nc6 {[%emt 0:02:35]} Qxf3 {[%emt 0:01:13]} 31. Qh4 {[%emt 0:00:15]} Qf5 {[%emt 0:04:27]} 32. Rc5 {[%emt 0:01:59]} g5 {[%emt 0:03:23]} 33. Nd4 {[%emt 0:03:14]} Qg6 {[%emt 0:01:17]} 0-1

[Event "2nd Namma Bengaluru Open-A 2025"]
[Site "Bengaluru"]
[Date "2025.04.17"]
[Round "9.11"]
[White "Saravana, Krishnan P."]
[Black "Nguyen, Quoc Hy"]
[Result "1-0"]
[Annotator "RC"]
[ECO "B55"]
[WhiteElo "2177"]
[BlackElo "2404"]
[PlyCount "53"]
[EventDate "2025.04.10"]
[EventType "swiss"]
[EventCountry "IND"]
[SourceTitle "playchess.com"]
[Source "ChessBase"]
[SourceQuality "1"]
[TimeControl "5400+30"]

1. e4 {[%emt 0:00:03]} c5 {[%emt 0:00:06]} 2. Nf3 {[%emt 0:00:07]} d6 {[%emt 0:00:05]} 3. d4 {[%emt 0:00:36]} cxd4 {[%emt 0:00:06]} 4. Nxd4 {[%emt 0:00:06]} Nf6 {[%emt 0:00:04]} 5. Bd3 {[%emt 0:00:06]} g6 {[%emt 0:00:08]} 6. c4 {[%emt 0:00:28]} Bg7 {[%emt 0:02:49]} 7. Nc3 {[%emt 0:00:44]} O-O {[%emt 0:00:09]} 8. h3 {[%emt 0:01:06]} Nc6 {[%emt 0:01:27]} 9. Be3 {[%emt 0:02:54]} Bd7 {[%emt 0:00:08]} 10. Qd2 {[%emt 0:08:23]} Rc8 {[%emt 0:02:06]} 11. O-O {[%emt 0:03:22]} a6 {[%emt 0:04:27]} 12. Rfd1 {[%emt 0:03:00]} Nxd4 {[%emt 0:08:40]} 13. Bxd4 {[%emt 0:00:09]} Bc6 {[%emt 0:00:05]} 14. b4 {[%emt 0:06:21]} b6 {[%emt 0:03:04]} 15. a3 {[%emt 0:03:08]} Bb7 {[%emt 0:01:58]} 16. Rac1 {[%emt 0:01:38]} Nd7 {[%emt 0:05:42]} 17. Be3 {[%emt 0:00:48]} Re8 {[%emt 0:01:15]} 18. Bf1 {[%emt 0:02:04]} Nf6 {[%emt 0:04:16]} 19. e5 {[%emt 0:02:45]} Nd7 {[%emt 0:21:27]} 20. exd6 {[%emt 0:01:23]} exd6 {[%emt 0:00:04]} 21. Qxd6 {[%emt 0:01:25]} Rxe3 {[%emt 0:01:05]} 22. fxe3 {[%emt 0:04:48]} Qg5 {[%emt 0:03:48]} 23. Qxd7 {[%emt 0:16:29]} Qxe3+ {[%emt 0:00:07]} 24. Kh1 {[%emt 0:00:12]} Be5 {[%emt 0:00:03]} 25. Re1 {[%emt 0:04:20]} Qf4 {[%emt 0:00:05]} 26. Rxe5 {[%emt 0:00:37]} Qxc1 {[%emt 0:00:05]} 27. Qd3 {[%emt 0:02:52]} 1-0

[Event "2nd Namma Bengaluru Open-A 2025"]
[Site "Bengaluru"]
[Date "2025.04.17"]
[Round "9.12"]
[White "Rajesh, V A V"]
[Black "Fedorov, Alexei"]
[Result "0-1"]
[Annotator "RC"]
[ECO "E71"]
[WhiteElo "2331"]
[BlackElo "2396"]
[PlyCount "56"]
[EventDate "2025.04.10"]
[EventType "swiss"]
[EventCountry "IND"]
[SourceTitle "playchess.com"]
[Source "ChessBase"]
[SourceQuality "1"]
[TimeControl "5400+30"]

1. d4 {[%emt 0:00:17]} Nf6 {[%emt 0:00:05]} 2. c4 {[%emt 0:00:06]} g6 {[%emt 0:00:07]} 3. Nc3 {[%emt 0:00:08]} Bg7 {[%emt 0:00:05]} 4. e4 {[%emt 0:00:27]} d6 {[%emt 0:00:04]} 5. h3 {[%emt 0:00:22]} Nbd7 {[%emt 0:00:22]} 6. Be3 {[%emt 0:01:11]} e5 {[%emt 0:00:10]} 7. d5 {[%emt 0:00:05]} Nc5 {[%emt 0:02:52]} 8. Qc2 {[%emt 0:00:11]} Nh5 {[%emt 0:00:22]} 9. b4 {[%emt 0:01:58]} Nd7 {[%emt 0:00:51]} 10. c5 {[%emt 0:02:39]} O-O {[%emt 0:01:50]} 11. cxd6 {[%emt 0:03:10]} cxd6 {[%emt 0:00:07]} 12. Nb5 {[%emt 0:00:07]} Ndf6 {[%emt 0:03:49]} 13. g4 {[%emt 0:07:41]} Nf4 {[%emt 0:04:34]} 14. Nc7 {[%emt 0:23:58]} Rb8 {[%emt 0:02:50]} 15. Bxa7 {[%emt 0:09:04]} Bd7 {[%emt 0:00:12]} 16. b5 {[%emt 0:20:13]} Nxe4 {[%emt 0:05:39]} 17. Bxb8 {[%emt 0:02:39]} Qxb8 {[%emt 0:01:50]} 18. b6 {[%emt 0:00:37]} Nc5 {[%emt 0:01:26]} 19. Bc4 {[%emt 0:04:20]} e4 {[%emt 0:01:45]} 20. Rb1 {[%emt 0:06:37]} Qd8 {[%emt 0:04:32]} 21. Qd2 {[%emt 0:02:33]} e3 {[%emt 0:03:00]} 22. fxe3 {[%emt 0:00:57]} Ne4 {[%emt 0:02:39]} 23. Qh2 {[%emt 0:00:49]} Qh4+ {[%emt 0:00:23]} 24. Kd1 {[%emt 0:00:04]} Nc3+ {[%emt 0:02:07]} 25. Kc2 {[%emt 0:00:09]} Nxb1 {[%emt 0:00:11]} 26. exf4 {[%emt 0:01:04]} Qe1 {[%emt 0:01:32]} 27. Bb3 {[%emt 0:02:47]} Re8 {[%emt 0:02:20]} 28. Nxe8 {[%emt 0:02:08]} Na3+ {[%emt 0:00:11]} 0-1

[Event "2nd Namma Bengaluru Open-A 2025"]
[Site "Bengaluru"]
[Date "2025.04.17"]
[Round "9.13"]
[White "Podolchenko, Evgeniy"]
[Black "Sammed Jaykumar, Shete"]
[Result "0-1"]
[Annotator "RC"]
[ECO "E11"]
[WhiteElo "2307"]
[BlackElo "2391"]
[PlyCount "70"]
[EventDate "2025.04.10"]
[EventType "swiss"]
[EventCountry "IND"]
[SourceTitle "playchess.com"]
[Source "ChessBase"]
[SourceQuality "1"]
[TimeControl "5400+30"]

1. d4 {[%emt 0:00:03]} Nf6 {[%emt 0:00:06]} 2. c4 {[%emt 0:00:04]} e6 {[%emt 0:00:07]} 3. Nf3 {[%emt 0:00:09]} d5 {[%emt 0:00:05]} 4. g3 {[%emt 0:00:10]} Bb4+ {[%emt 0:00:32]} 5. Bd2 {[%emt 0:00:06]} Be7 {[%emt 0:00:04]} 6. Bg2 {[%emt 0:00:05]} Nbd7 {[%emt 0:00:29]} 7. O-O {[%emt 0:01:49]} c6 {[%emt 0:00:22]} 8. Qc2 {[%emt 0:00:06]} Ne4 {[%emt 0:00:06]} 9. Be3 {[%emt 0:00:09]} Nd6 {[%emt 0:03:37]} 10. b3 {[%emt 0:01:10]} a5 {[%emt 0:00:33]} 11. c5 {[%emt 0:10:09]} Nf5 {[%emt 0:00:48]} 12. Bc1 {[%emt 0:00:15]} b6 {[%emt 0:00:59]} 13. g4 {[%emt 0:09:34]} Nh4 {[%emt 0:01:47]} 14. Nxh4 {[%emt 0:00:17]} Bxh4 {[%emt 0:00:08]} 15. cxb6 {[%emt 0:05:00]} Qxb6 {[%emt 0:14:39]} 16. Be3 {[%emt 0:18:01]} a4 {[%emt 0:08:57]} 17. Nd2 {[%emt 0:07:00]} O-O {[%emt 0:12:14]} 18. g5 {[%emt 0:10:04]} f6 {[%emt 0:03:14]} 19. f4 {[%emt 0:17:01]} e5 {[%emt 0:02:36]} 20. Nf3 {[%emt 0:01:40]} exf4 {[%emt 0:05:16]} 21. g6 {[%emt 0:02:13]} hxg6 {[%emt 0:08:05]} 22. Bxf4 {[%emt 0:04:06]} g5 {[%emt 0:01:16]} 23. Bd6 {[%emt 0:00:24]} Re8 {[%emt 0:07:31]} 24. bxa4 {[%emt 0:00:01]} Re6 {[%emt 0:04:50]} 25. Rab1 {[%emt 0:02:00]} Qa6 {[%emt 0:00:30]} 26. Bb4 {[%emt 0:03:20]} Rxe2 {[%emt 0:19:19]} 27. Qg6 {[%emt 0:00:37]} Rxg2+ {[%emt 0:00:50]} 28. Kxg2 {[%emt 0:00:02]} Qe2+ {[%emt 0:00:05]} 29. Kh1 {[%emt 0:00:45]} c5 {[%emt 0:00:12]} 30. Bxc5 {[%emt 0:02:03]} Nxc5 {[%emt 0:01:26]} 31. Nxh4 {[%emt 0:01:14]} Nd3 {[%emt 0:01:55]} 32. Nf5 {[%emt 0:02:14]} Nf2+ {[%emt 0:02:02]} 33. Kg2 {[%emt 0:01:43]} Qe4+ {[%emt 0:00:41]} 34. Kxf2 {[%emt 0:00:03]} Bxf5 {[%emt 0:00:07]} 35. Qh5 {[%emt 0:00:10]} Bg4 {[%emt 0:00:12]} 0-1

[Event "2nd Namma Bengaluru Open-A 2025"]
[Site "Bengaluru"]
[Date "2025.04.17"]
[Round "9.14"]
[White "Ayush Sharma"]
[Black "Wagh Suyog"]
[Result "1-0"]
[Annotator "RC"]
[ECO "B12"]
[WhiteElo "2485"]
[BlackElo "2289"]
[PlyCount "81"]
[EventDate "2025.04.10"]
[EventType "swiss"]
[EventCountry "IND"]
[SourceTitle "playchess.com"]
[Source "ChessBase"]
[SourceQuality "1"]
[TimeControl "5400+30"]

1. e4 {[%emt 0:00:03]} c6 {[%emt 0:00:18]} 2. Nf3 {[%emt 0:00:10]} d5 {[%emt 0:00:04]} 3. e5 {[%emt 0:00:03]} Bf5 {[%emt 0:00:41]} 4. d4 {[%emt 0:00:18]} e6 {[%emt 0:00:04]} 5. c3 {[%emt 0:00:19]} c5 {[%emt 0:01:56]} 6. Be3 {[%emt 0:00:07]} Qb6 {[%emt 0:07:49]} 7. Qc1 {[%emt 0:00:01]} Nc6 {[%emt 0:02:29]} 8. Nbd2 {[%emt 0:00:20]} cxd4 {[%emt 0:26:34]} 9. Nxd4 {[%emt 0:00:19]} Nxd4 {[%emt 0:00:04]} 10. Bxd4 {[%emt 0:00:54]} Bc5 {[%emt 0:00:01]} 11. Bxc5 {[%emt 0:06:29]} Qxc5 {[%emt 0:00:59]} 12. Nb3 {[%emt 0:00:16]} Qb6 {[%emt 0:06:16]} 13. Nd4 {[%emt 0:16:36]} Ne7 {[%emt 0:01:35]} 14. Bb5+ {[%emt 0:01:19]} Kf8 {[%emt 0:00:02]} 15. O-O {[%emt 0:03:03]} Bg6 {[%emt 0:04:52]} 16. a4 {[%emt 0:11:40]} a6 {[%emt 0:13:14]} 17. a5 {[%emt 0:03:32]} Qc7 {[%emt 0:00:08]} 18. Qf4 {[%emt 0:00:07]} Kg8 {[%emt 0:01:36]} 19. Be2 {[%emt 0:00:43]} Nc6 {[%emt 0:12:16]} 20. Nxc6 {[%emt 0:03:52]} bxc6 {[%emt 0:00:05]} 21. c4 {[%emt 0:14:31]} f6 {[%emt 0:02:05]} 22. cxd5 {[%emt 0:02:07]} exd5 {[%emt 0:01:05]} 23. Rac1 {[%emt 0:02:52]} Qxe5 {[%emt 0:06:58]} 24. Qxe5 {[%emt 0:02:24]} fxe5 {[%emt 0:01:05]} 25. Rxc6 {[%emt 0:00:28]} Kf7 {[%emt 0:00:12]} 26. f4 {[%emt 0:00:18]} exf4 {[%emt 0:06:49]} 27. Rxf4+ {[%emt 0:00:07]} Ke7 {[%emt 0:00:01]} 28. Bg4 {[%emt 0:01:33]} Rhb8 {[%emt 0:02:11]} 29. Re6+ {[%emt 0:00:27]} Kd8 {[%emt 0:00:05]} 30. Rd6+ {[%emt 0:00:26]} Ke8 {[%emt 0:01:39]} 31. Re6+ {[%emt 0:09:53]} Kd8 {[%emt 0:00:03]} 32. h4 {[%emt 0:00:42]} Kc7 {[%emt 0:01:00]} 33. h5 {[%emt 0:01:31]} Be8 {[%emt 0:00:01]} 34. b4 {[%emt 0:00:26]} Rd8 {[%emt 0:01:50]} 35. Rf1 {[%emt 0:00:54]} Rd6 {[%emt 0:01:15]} 36. Rc1+ {[%emt 0:01:17]} Rc6 {[%emt 0:00:05]} 37. Re7+ {[%emt 0:00:04]} Kd6 {[%emt 0:00:13]} 38. Rce1 {[%emt 0:00:03]} d4 {[%emt 0:01:15]} 39. R1e6+ {[%emt 0:00:11]} Kd5 {[%emt 0:00:12]} 40. Bf3+ {[%emt 0:00:04]} Kc4 {[%emt 0:00:08]} 41. Bxc6 {[%emt 0:00:05]} 1-0

[Event "2nd Namma Bengaluru Open-A 2025"]
[Site "Bengaluru"]
[Date "2025.04.17"]
[Round "9.15"]
[White "Jani Kushal R"]
[Black "Savchenko, Boris"]
[Result "0-1"]
[Annotator "RC"]
[ECO "D95"]
[WhiteElo "2248"]
[BlackElo "2459"]
[PlyCount "80"]
[EventDate "2025.04.10"]
[EventType "swiss"]
[EventCountry "IND"]
[SourceTitle "playchess.com"]
[Source "ChessBase"]
[SourceQuality "1"]
[TimeControl "5400+30"]

1. d4 {[%emt 1:31:00]} Nf6 {[%emt 0:07:49]} 2. c4 {[%emt 0:00:00]} g6 {[%emt 0:00:15]} 3. Nc3 {[%emt 0:00:00]} d5 {[%emt 0:00:06]} 4. Nf3 {[%emt 0:00:00]} Bg7 {[%emt 0:00:12]} 5. e3 {[%emt 0:00:00]} O-O {[%emt 0:00:18]} 6. Qb3 {[%emt 0:00:00]} e6 {[%emt 0:01:23]} 7. Be2 {[%emt 0:00:00]} b6 {[%emt 0:03:14]} 8. O-O {[%emt 0:00:00]} Bb7 {[%emt 0:02:02]} 9. Rd1 {[%emt 0:00:00]} Nbd7 {[%emt 0:00:31]} 10. cxd5 {[%emt 0:00:00]} exd5 {[%emt 0:00:10]} 11. a4 {[%emt 0:00:00]} c5 {[%emt 0:02:51]} 12. a5 {[%emt 0:00:00]} Qc7 {[%emt 0:11:51]} 13. Bd2 {[%emt 0:00:00]} c4 {[%emt 0:01:48]} 14. Qc2 {[%emt 0:00:00]} Bc6 {[%emt 0:02:12]} 15. b3 {[%emt 0:00:00]} b5 {[%emt 0:01:02]} 16. bxc4 {[%emt 0:00:00]} bxc4 {[%emt 0:10:10]} 17. Be1 {[%emt 0:00:00]} Rfe8 {[%emt 0:08:56]} 18. Nd2 {[%emt 0:00:00]} Rac8 {[%emt 0:04:29]} 19. Nf1 {[%emt 0:00:00]} Ne4 {[%emt 0:01:10]} 20. Nxe4 {[%emt 0:00:00]} Rxe4 {[%emt 0:00:17]} 21. f3 {[%emt 0:00:00]} Re6 {[%emt 0:02:18]} 22. Rac1 {[%emt 0:00:00]} Nf6 {[%emt 0:01:23]} 23. e4 {[%emt 0:00:00]} dxe4 {[%emt 0:06:49]} 24. Qxc4 {[%emt 0:00:00]} Bh6 {[%emt 0:06:41]} 25. Bd2 {[%emt 0:00:00]} e3 {[%emt 0:17:46]} 26. Be1 {[%emt 0:00:00]} Nd5 {[%emt 0:00:09]} 27. g3 {[%emt 0:00:00]} Qd7 {[%emt 0:00:24]} 28. Qa2 {[%emt 0:00:00]} Ree8 {[%emt 0:00:13]} 29. Rc5 {[%emt 0:00:40]} Bf8 {[%emt 0:00:18]} 30. Bc4 {[%emt 0:01:17]} Rcd8 {[%emt 0:01:06]} 31. Rc1 {[%emt 0:02:23]} Bxc5 {[%emt 0:01:00]} 32. dxc5 {[%emt 0:00:06]} Bb5 {[%emt 0:00:17]} 33. Bb3 {[%emt 0:01:15]} e2 {[%emt 0:00:39]} 34. Nd2 {[%emt 0:00:23]} Nb4 {[%emt 0:00:11]} 35. Qa1 {[%emt 0:02:39]} Nd3 {[%emt 0:00:09]} 36. Ne4 {[%emt 0:00:49]} Rxe4 {[%emt 0:00:21]} 37. fxe4 {[%emt 0:00:12]} Nxc1 {[%emt 0:00:07]} 38. Qxc1 {[%emt 0:00:21]} Qd1 {[%emt 0:00:39]} 39. Qc3 {[%emt 0:00:48]} Rd3 {[%emt 0:00:16]} 40. Bxd1 {[%emt 0:01:17]} exd1=Q {[%emt 0:00:09]} 0-1

[Event "2nd Namma Bengaluru Open-A 2025"]
[Site "Bengaluru"]
[Date "2025.04.17"]
[Round "9.16"]
[White "Sanikidze, Tornike"]
[Black "Kshatriya Nitin Vekhande"]
[Result "0-1"]
[Annotator "RC"]
[ECO "D37"]
[WhiteElo "2448"]
[BlackElo "2133"]
[PlyCount "94"]
[EventDate "2025.04.10"]
[EventType "swiss"]
[EventCountry "IND"]
[SourceTitle "playchess.com"]
[Source "ChessBase"]
[SourceQuality "1"]
[TimeControl "5400+30"]

1. d4 {[%emt 0:00:12]} Nf6 {[%emt 0:00:05]} 2. c4 {[%emt 0:00:08]} e6 {[%emt 0:00:03]} 3. Nf3 {[%emt 0:00:33]} d5 {[%emt 0:00:11]} 4. Nc3 {[%emt 0:00:04]} Be7 {[%emt 0:00:07]} 5. Bf4 {[%emt 0:00:16]} O-O {[%emt 0:00:12]} 6. e3 {[%emt 0:00:13]} c5 {[%emt 0:00:34]} 7. dxc5 {[%emt 0:00:06]} Bxc5 {[%emt 0:00:07]} 8. Qc2 {[%emt 0:01:01]} Nc6 {[%emt 0:00:12]} 9. a3 {[%emt 0:00:05]} Qa5 {[%emt 0:00:14]} 10. Rd1 {[%emt 0:00:07]} Be7 {[%emt 0:00:45]} 11. Be2 {[%emt 0:00:06]} Ne4 {[%emt 0:01:38]} 12. cxd5 {[%emt 0:01:44]} Nxc3 {[%emt 0:00:42]} 13. bxc3 {[%emt 0:00:13]} exd5 {[%emt 0:00:16]} 14. O-O {[%emt 0:00:06]} a6 {[%emt 0:10:38]} 15. a4 {[%emt 0:10:42]} Bf6 {[%emt 0:03:54]} 16. Nd4 {[%emt 0:00:34]} Bd7 {[%emt 0:13:47]} 17. Rb1 {[%emt 0:29:54]} Rfc8 {[%emt 0:24:19]} 18. Qb3 {[%emt 0:06:59]} Nxd4 {[%emt 0:05:32]} 19. cxd4 {[%emt 0:02:29]} Bc6 {[%emt 0:09:01]} 20. Bd6 {[%emt 0:03:54]} Qd8 {[%emt 0:10:49]} 21. Qa3 {[%emt 0:03:47]} Qd7 {[%emt 0:05:05]} 22. a5 {[%emt 0:01:08]} Re8 {[%emt 0:01:20]} 23. Bc5 {[%emt 0:01:38]} g6 {[%emt 0:00:33]} 24. Rfc1 {[%emt 0:04:31]} h5 {[%emt 0:02:01]} 25. Rb4 {[%emt 0:00:06]} Bh4 {[%emt 0:01:45]} 26. Bd1 {[%emt 0:01:46]} Qf5 {[%emt 0:02:02]} 27. Rb2 {[%emt 0:01:15]} Bg5 {[%emt 0:01:38]} 28. Ra1 {[%emt 0:02:33]} Re6 {[%emt 0:04:48]} 29. Ba4 {[%emt 0:03:29]} Rae8 {[%emt 0:00:06]} 30. Bxc6 {[%emt 0:03:17]} bxc6 {[%emt 0:00:02]} 31. Re1 {[%emt 0:00:14]} h4 {[%emt 0:01:13]} 32. h3 {[%emt 0:00:17]} Bh6 {[%emt 0:01:15]} 33. Qb3 {[%emt 0:01:46]} Qg5 {[%emt 0:01:30]} 34. Qb7 {[%emt 0:07:49]} f5 {[%emt 0:00:31]} 35. Qd7 {[%emt 0:00:40]} Qf6 {[%emt 0:00:17]} 36. Rb7 {[%emt 0:03:02]} Bg7 {[%emt 0:00:16]} 37. Reb1 {[%emt 0:00:42]} f4 {[%emt 0:00:34]} 38. Kh2 {[%emt 0:04:35]} Kh7 {[%emt 0:00:52]} 39. Be7 {[%emt 0:01:43]} R8xe7 {[%emt 0:00:17]} 40. Qc8 {[%emt 0:00:34]} fxe3 {[%emt 0:00:28]} 41. Rxe7 {[%emt 0:00:50]} Rxe7 {[%emt 0:00:28]} 42. fxe3 {[%emt 0:00:07]} Rxe3 {[%emt 0:00:30]} 43. Kh1 {[%emt 0:00:01]} Qf5 {[%emt 0:00:43]} 44. Qb7 {[%emt 0:00:11]} Kh6 {[%emt 0:00:30]} 45. Qb4 {[%emt 0:00:41]} Qe4 {[%emt 0:00:33]} 46. Kh2 {[%emt 0:00:24]} Qxd4 {[%emt 0:00:23]} 47. Qb7 {[%emt 0:00:38]} Qe5+ {[%emt 0:00:11]} 0-1